[Event "Serbian League Women 2024"]
[Site "Bajina Basta"]
[Date "2024.09.29"]
[Round "3.24"]
[White "Nestorovic, Katarina"]
[Black "Petrovic, Marija"]
[Result "1-0"]
[ECO "C40"]
[WhiteElo "2038"]
[BlackElo "1898"]
[Annotator "NA RC"]
[PlyCount "113"]
[EventDate "2024.09.26"]
[EventType "team-tourn"]
[EventCountry "SRB"]
[SourceTitle "playchess.com"]
[Source "ChessBase"]
[SourceQuality "1"]
[TimeControl "40/5400+30:1800+30"]

1. e4 {[%emt 0:00:05]} e5 {[%emt 0:00:07]} 2. Nf3 {[%emt 0:00:18]} Qe7 {[%emt 0:00:22]} 3. Bc4 {[%emt 0:01:44]} d6 {[%emt 0:00:14]} 4. d3 {[%emt 0:01:38]} h6 {[%emt 0:00:08]} 5. O-O {[%emt 0:00:41]} Nf6 {[%emt 0:00:15]} 6. Re1 {[%emt 0:02:21]} Bg4 {[%emt 0:01:52]} 7. Nbd2 {[%emt 0:00:31]} Nbd7 {[%emt 0:03:04]} 8. Nf1 {[%emt 0:02:26]} g6 {[%emt 0:00:47]} 9. c3 {[%emt 0:10:44]} Be6 {[%emt 0:02:16]} 10. Bb3 {[%emt 0:03:52]} Bxb3 {[%emt 0:00:15]} 11. Qxb3 {[%emt 0:02:04]} Nc5 {[%emt 0:02:48]} 12. Qc2 {[%emt 0:00:33]} Bg7 {[%emt 0:00:15]} 13. d4 {[%emt 0:05:26]} Ncd7 {[%emt 0:00:36]} 14. Ng3 {[%emt 0:02:51]} O-O {[%emt 0:00:16]} 15. Bd2 {[%emt 0:04:07]} Rfe8 {[%emt 0:00:28]} 16. Rad1 {[%emt 0:00:13]} Qf8 {[%emt 0:05:46]} 17. Nh4 {[%emt 0:05:03]} c5 {[%emt 0:07:38]} 18. dxe5 {[%emt 0:02:11]} dxe5 {[%emt 0:02:27]} 19. Qb3 {[%emt 0:02:21]} Kh7 {[%emt 0:01:16]} 20. Qxb7 {[%emt 0:03:52]} Rab8 {[%emt 0:11:07]} 21. Qa6 {[%emt 0:10:41]} Rxb2 {[%emt 0:03:33]} 22. Bc1 {[%emt 0:01:28]} Rb6 {[%emt 0:00:21]} 23. Qa4 {[%emt 0:01:21]} Rd6 {[%emt 0:10:16]} 24. Rxd6 {[%emt 0:07:40]} Qxd6 {[%emt 0:00:10]} 25. Qxa7 {[%emt 0:00:32]} Qc6 {[%emt 0:01:42]} 26. Qa3 {[%emt 0:01:02]} Ra8 {[%emt 0:01:07]} 27. Qb2 {[%emt 0:03:37]} Qe6 {[%emt 0:03:49]} 28. Re2 {[%emt 0:04:17]} c4 {[%emt 0:02:20]} 29. Nf3 {[%emt 0:07:35]} Nc5 {[%emt 0:00:46]} 30. Ne1 {[%emt 0:08:03]} Bf8 {[%emt 0:05:14]} 31. h3 {[%emt 0:02:17]} Nd3 {[%emt 0:06:09]} 32. Qb1 {[%emt 0:01:11]} Nxc1 {[%emt 0:02:43]} 33. Qxc1 {[%emt 0:00:04]} Nd7 {[%emt 0:00:24]} 34. Qb1 {[%emt 0:02:23]} Rb8 {[%emt 0:00:15]} 35. Rb2 {[%emt 0:00:33]} Ra8 {[%emt 0:10:51]} 36. Nf1 {[%emt 0:00:10]} Nc5 {[%emt 0:01:04]} 37. Ne3 {[%emt 0:01:22]} Na4 {[%emt 0:04:40]} 38. Rc2 {[%emt 0:00:08]} Bc5 {[%emt 0:02:39]} 39. Nd5 {[%emt 0:00:23]} Nb6 {[%emt 0:03:33]} 40. Nc7 {[%emt 0:00:43]} Qc8 {[%emt 0:01:35]} 41. Nxa8 {[%emt 0:30:16]} Qxa8 {[%emt 0:30:05]} 42. Rd2 {[%emt 0:00:00]} Qa5 {[%emt 0:00:00]} 43. Qc2 {[%emt 0:00:00]} Kg7 {[%emt 0:00:00]} 44. Nf3 {[%emt 0:00:00]} Kf6 {[%emt 0:00:00]} 45. Rd1 {[%emt 0:00:00]} Be7 {[%emt 0:00:00]} 46. Qd2 {[%emt 0:00:00]} Kg7 {[%emt 0:00:00]} 47. Rb1 {[%emt 0:00:00]} Na4 {[%emt 0:00:00]} 48. Rb7 {[%emt 0:00:00]} Kf6 {[%emt 0:00:00]} 49. Qxh6 {[%emt 0:00:00]} Ke6 {[%emt 0:00:00]} 50. Ng5+ {[%emt 0:00:00]} Bxg5 {[%emt 0:00:00]} 51. Qxg5 {[%emt 0:00:00]} Qc5 {[%emt 0:00:00]} 52. Qd8 {[%emt 0:00:00]} Qd6 {[%emt 0:02:08]} 53. Qe8+ {[%emt 0:00:00]} Kf6 {[%emt 0:00:09]} 54. Qxa4 {[%emt 0:00:00]} Qd2 {[%emt 0:00:08]} 55. Qxc4 {[%emt 0:00:00]} Qc1+ {[%emt 0:01:10]} 56. Qf1 {[%emt 0:00:00]} Qxc3 {[%emt 0:00:12]} 57. Qb1 {[%emt 0:00:00]} 1-0